bitfinex-derivatives/quotes_SOLF0:USTF0_20250929
["timestamp","ask_amount","ask_price","bid_price","bid_amount"]
[1759124825969,12.1278,209.33,209.29,7.91]
[1759124826369,12.1278,209.33,209.28,5.3630442]
[1759124826569,12.1278,209.33,209.29,7.91]
[1759124826775,4.2978,209.33,209.3,7.91]
[1759124827070,4.2974,209.35,209.29,5.3630442]
[1759124827270,7.83,209.34,209.29,5.3630442]
[1759124827868,7.83,209.34,209.3,7.91]
[1759124828071,7.83,209.34,209.29,5.3630442]
[1759124828775,7.83,209.34,209.3,7.91]
[1759124828976,4.2976,209.34,209.29,13.2730442]
[1759124829173,7.83,209.33,209.29,5.3630442]
[1759124829375,7.83,209.33,209.3,7.91]
[1759124833080,7.83,209.33,209.3,13.2730442]
[1759124833278,12.1279,209.33,209.3,13.2730442]
[1759124833780,12.1279,209.33,209.31,7.57]
[1759124837381,12.0879,209.33,209.31,7.57]
[1759124839782,4.2979,209.33,209.31,7.57]
[1759124839984,12.0874,209.35,209.3,5.3630442]
[1759124840184,12.0874,209.35,209.31,7.57]
[1759124840385,7.79,209.35,209.31,7.57]
[1759124840582,7.79,209.4,209.31,7.57]
[1759124840884,7.79,209.39,209.32,7.57]
[1759124841080,7.79,209.39,209.31,5.3630442]
[1759124842289,7.79,209.39,209.33,5.3630442]
[1759124842679,12.0875,209.35,209.33,5.3630442]
[1759124843186,12.0875,209.35,209.33,7.57]
[1759124843788,12.297,209.37,209.33,7.57]
[1759124844087,2.19015512,209.42,209.33,5.3630442]
[1759124844388,8.0,209.41,209.34,7.57]
[1759124844892,8.0,209.41,209.34,12.9330442]
[1759124845589,12.2965,209.39,209.34,5.3630442]
[1759124846091,12.2965,209.39,209.35,7.57]
[1759124846389,12.2965,209.39,209.33,5.3630442]
[1759124846779,12.2965,209.39,209.34,7.57]
[1759124846982,4.2965,209.39,209.33,5.3630442]
[1759124847590,12.2965,209.39,209.34,7.57]
[1759124847983,4.2965,209.39,209.33,5.3630442]
[1759124848183,4.2965,209.39,209.34,7.57]
[1759124848184,12.2965,209.39,209.34,7.57]
[1759124848390,4.2965,209.39,209.33,5.3630442]
[1759124848692,12.2965,209.39,209.33,12.9330442]
[1759124849091,12.2965,209.39,209.34,5.3630442]
[1759124849288,8.0,209.38,209.35,7.57]
[1759124849787,8.0,209.38,209.34,5.3630442]
[1759124850190,8.0,209.38,209.35,7.57]
[1759124850693,8.0,209.38,209.32,4.2979]
[1759124851092,8.0,209.38,209.31,123.5504589]
[1759124851296,8.0,209.38,209.32,7.57]
[1759124853192,8.0,209.38,209.32,115.58]
[1759124853393,12.2962,209.41,209.33,7.57]
[1759124853589,12.2962,209.41,209.34,7.57]
[1759124853995,12.2962,209.41,209.35,7.57]
[1759124854498,12.2962,209.41,209.37,7.57]
[1759124854697,12.2962,209.41,209.36,5.35050514]
[1759124854698,8.0,209.41,209.36,5.35050514]
[1759124855196,8.0,209.41,209.37,7.57]
[1759124855391,8.0,209.41,209.36,5.35050514]
[1759124855592,8.0,209.41,209.37,7.57]
[1759124855994,8.0,209.41,209.36,5.35050514]
[1759124856196,4.2957,209.43,209.37,7.57]
[1759124856197,8.0,209.43,209.37,7.57]
[1759124856395,8.0,209.43,209.37,12.92050514]
[1759124857003,66.8225,209.43,209.35,5.35050514]
[1759124857198,8.0,209.4,209.33,5.35050514]
[1759124857600,8.0,209.38,209.32,5.35050514]
[1759124857795,8.0,209.38,209.3,5.35050514]
[1759124857796,10.19015512,209.38,209.3,5.35050514]
[1759124858202,8.0,209.33,209.3,5.35050514]
[1759124858403,4.2977,209.34,209.28,7.57]
[1759124858601,8.0,209.33,209.28,7.57]
[1759124858800,4.2977,209.34,209.28,7.57]
[1759124859601,12.2979,209.33,209.28,7.57]
[1759124859900,8.0,209.32,209.28,7.57]
[1759124860505,8.0,209.34,209.25,7.9704589]
[1759124860704,8.0,209.33,209.24,16.16223605]
[1759124860901,8.0,209.27,209.17,7.9704589]
[1759124861103,8.0,209.27,209.18,15.5404589]
[1759124861403,12.2991,209.27,209.18,7.57]
[1759124863509,8.0,209.24,209.18,7.57]
[1759124865605,8.0,209.27,209.19,4.3006]
[1759124865805,8.0,209.27,209.2,7.57]
[1759124868808,8.0,209.27,209.2,178.4]
[1759124869004,8.0,209.27,209.21,7.57]
[1759124876012,4.2992,209.26,209.21,7.57]
[1759124876210,7.87,209.25,209.21,7.57]
[1759124876511,7.87,209.25,209.21,7.32]
[1759124876707,7.87,209.25,209.2,178.3]
[1759124877108,7.87,209.25,209.21,7.32]
[1759124877312,7.87,209.25,209.2,62.0]
[1759124877508,7.87,209.25,209.21,116.3]
[1759124878315,7.87,209.25,209.22,7.32]
[1759124879113,7.87,209.25,209.21,116.3]
[1759124879309,7.87,209.25,209.22,7.32]
[1759124880513,7.87,209.25,209.21,116.3]
[1759124880714,7.87,209.25,209.22,7.32]
[1759124881414,7.87,209.25,209.21,116.3]
[1759124881914,7.87,209.25,209.22,7.32]
[1759124884820,7.87,209.25,209.21,116.3]
[1759124885216,7.87,209.25,209.22,7.32]
[1759124885616,7.87,209.25,209.21,116.3]
[1759124885817,7.87,209.25,209.22,7.32]
[1759124886320,7.87,209.25,209.21,116.3]
[1759124886716,7.87,209.25,209.22,7.32]
[1759124887917,12.1688,209.28,209.21,116.3]
[1759124888127,12.1688,209.28,209.22,7.32]
[1759124888717,4.2991,209.27,209.22,7.32]
[1759124889716,7.87,209.26,209.22,7.32]
[1759124889917,7.87,209.25,209.22,7.32]
[1759124890522,4.2993,209.26,209.22,7.32]
[1759124891124,66.8619,209.31,209.19,7.32]
[1759124891125,69.05885512,209.29,209.19,7.32]
[1759124891331,69.05885512,209.29,209.2,116.12]
[1759124891923,7.87,209.28,209.2,116.12]
[1759124892321,7.41,209.28,209.2,116.12]
[1759124892532,69.05885512,209.29,209.2,116.12]
[1759124892731,11.7097,209.24,209.2,116.12]
[1759124893036,11.7097,209.24,209.21,7.35]
[1759124893334,7.41,209.23,209.21,7.35]
[1759124893631,7.41,209.23,209.2,116.12]
[1759124893832,7.41,209.23,209.2,123.47]
[1759124896834,7.41,209.23,209.2,116.12]
[1759124897037,7.41,209.23,209.21,7.35]
[1759124897636,11.7097,209.24,209.21,7.35]
[1759124897836,7.41,209.23,209.21,7.35]
[1759124900047,1.40305018,209.24,209.2,116.12]
[1759124900240,1.40305018,209.22,209.15,132.62336508]
[1759124900542,7.41,209.21,209.15,248.80336508]
[1759124900744,1.40305018,209.22,209.15,248.80336508]
[1759124901538,4.3009,209.18,209.15,248.80336508]
[1759124901739,11.7109,209.18,209.15,248.80336508]
[1759124904442,4.3004,209.21,209.17,7.44]
[1759124904842,4.3004,209.21,209.18,116.16]
[1759124905045,4.3004,209.21,209.19,7.44]
[1759124906349,4.3004,209.21,209.18,116.16]
[1759124906545,4.2998,209.24,209.19,7.44]
[1759124906747,4.2998,209.24,209.19,116.16]
[1759124906944,12.2898,209.24,209.19,116.16]
[1759124907950,12.2898,209.24,209.2,7.44]
[1759124908149,12.2898,209.24,209.19,116.16]
[1759124908352,12.29,209.23,209.2,7.44]
[1759124909747,12.29,209.23,209.16,1.40305018]
[1759124909950,12.29,209.23,209.19,116.16]
[1759124910544,12.29,209.23,209.2,7.44]
[1759124911251,7.99,209.22,209.2,7.44]
[1759124911551,7.99,209.22,209.19,116.16]
[1759124911751,7.99,209.22,209.19,116.14]
[1759124912151,7.99,209.22,209.19,123.58]
[1759124912652,12.2902,209.22,209.19,7.44]
[1759124915859,4.3002,209.22,209.19,7.44]
[1759124916051,12.2902,209.22,209.19,7.44]
[1759124916251,7.99,209.2,209.18,116.12]
[1759124917150,1.40305018,209.23,209.18,116.12]
[1759124917349,7.99,209.22,209.18,116.12]
[1759124917549,4.3005,209.2,209.18,116.12]
[1759124917745,12.2905,209.2,209.18,116.12]
[1759124918953,12.2905,209.2,209.18,123.56]
[1759124920054,7.99,209.25,209.19,7.44]
[1759124920255,9.39305018,209.24,209.18,7.44]
[1759124920455,9.39305018,209.24,209.18,123.6]
[1759124920962,4.3003,209.21,209.19,7.44]
[1759124921457,4.3003,209.21,209.18,116.16]
[1759124922162,4.3003,209.21,209.19,7.44]
[1759124922352,4.3003,209.21,209.18,116.16]
[1759124922557,4.3003,209.21,209.19,7.44]
[1759124923059,4.3003,209.21,209.18,116.16]
[1759124923266,4.3003,209.21,209.19,7.44]
[1759124923662,4.2999,209.23,209.19,7.44]
[1759124923957,4.2999,209.23,209.18,1.40305018]
[1759124923958,4.2999,209.23,209.2,7.44]
[1759124924167,4.2999,209.23,209.19,116.14]
[1759124924865,4.2999,209.23,209.2,7.44]
[1759124925263,4.2999,209.23,209.19,116.14]
[1759124925467,4.2999,209.23,209.2,7.44]
[1759124925865,4.2999,209.23,209.19,116.14]
[1759124926165,4.2999,209.23,209.2,7.44]
[1759124926959,4.2999,209.23,209.19,116.14]
[1759124927966,4.2999,209.23,209.2,7.44]
[1759124928366,4.2999,209.23,209.19,116.14]
[1759124928566,4.2999,209.23,209.2,7.44]
[1759124928764,4.2999,209.23,209.19,116.14]
[1759124929261,4.2999,209.23,209.2,7.44]
[1759124929461,4.2999,209.23,209.19,116.14]
[1759124929658,4.2999,209.23,209.2,7.44]
[1759124929861,12.2899,209.23,209.2,7.44]
[1759124932072,4.2999,209.23,209.2,7.44]
[1759124932371,7.99,209.22,209.2,7.44]
[1759124932664,66.8843,209.24,209.16,7.44]
[1759124932867,7.99,209.22,209.15,125.27336508]
[1759124933070,7.99,209.22,209.15,132.71336508]
[1759124933667,4.3007,209.19,209.16,7.44]
[1759124933866,4.3007,209.19,209.16,7.34]
[1759124934071,7.99,209.22,209.16,7.34]
[1759124934266,4.3002,209.21,209.15,241.37336508]
[1759124934573,7.99,209.22,209.16,7.34]
[1759124934772,7.57,209.25,209.16,8.74305018]
[1759124935269,7.57,209.25,209.17,116.12]
[1759124935475,4.2999,209.23,209.18,7.34]
[1759124935678,4.2999,209.23,209.17,7.34]
[1759124935867,4.2999,209.23,209.19,7.34]
[1759124936068,4.2999,209.23,209.16,13.67460908]
[1759124936264,11.8694,209.25,209.19,7.34]
[1759124936777,11.8694,209.25,209.19,123.46]
[1759124936975,11.8694,209.25,209.19,7.34]
[1759124937170,11.8694,209.25,209.19,123.46]
[1759124938784,11.8694,209.25,209.19,116.12]
[1759124939082,11.8694,209.25,209.2,7.34]
[1759124939373,1.40305018,209.28,209.2,8.74305018]
[1759124939374,4.299,209.27,209.2,8.74305018]
[1759124939680,4.299,209.27,209.21,7.34]
[1759124940781,7.57,209.27,209.21,7.34]
[1759124941370,4.2995,209.25,209.19,116.08]
[1759124941782,4.2995,209.25,209.2,7.34]
[1759124941968,4.2995,209.25,209.19,7.34]
[1759124942280,4.2995,209.25,209.19,123.42]
[1759124942679,4.2995,209.25,209.19,116.08]
[1759124942880,4.2995,209.25,209.19,7.34]
[1759124943080,4.2995,209.25,209.19,123.4]
[1759124944079,7.57,209.23,209.19,7.34]
[1759124944274,1.40305018,209.26,209.19,7.34]
[1759124944478,7.57,209.22,209.19,7.34]
[1759124944978,4.2999,209.23,209.19,7.34]
[1759124945580,7.57,209.22,209.19,7.34]
[1759124946377,66.8713,209.28,209.19,7.34]
[1759124946378,11.8693,209.26,209.19,1.40305018]
[1759124946581,11.8693,209.26,209.2,7.34]
[1759124950383,4.2995,209.25,209.2,7.34]
[1759124950582,4.2995,209.25,209.19,117.44305018]
[1759124950583,11.8695,209.25,209.19,8.74305018]
[1759124950789,11.8695,209.25,209.19,123.36]
[1759124951180,11.8695,209.25,209.19,7.34]
[1759124951383,11.8695,209.25,209.19,123.34]
[1759124952086,11.8695,209.25,209.19,116.0]
[1759124953084,7.66,209.24,209.2,7.89]
[1759124953284,7.66,209.24,209.19,123.87]
[1759124953481,7.66,209.24,209.19,115.98]
[1759124953688,7.66,209.24,209.2,7.89]
[1759124953875,7.66,209.24,209.19,115.98]
[1759124955288,7.66,209.24,209.21,7.89]
[1759124955484,7.66,209.24,209.2,7.89]
[1759124955686,7.66,209.24,209.19,115.98]
[1759124955980,7.66,209.24,209.2,7.89]
[1759124956585,7.66,209.24,209.19,115.98]
[1759124958180,7.66,209.24,209.2,7.89]
[1759124958384,7.66,209.24,209.19,115.98]
[1759124958585,7.66,209.24,209.2,7.89]
[1759124958889,7.66,209.24,209.19,115.98]
[1759124959080,7.66,209.24,209.2,7.89]
[1759124959286,7.66,209.24,209.19,115.98]
[1759124959585,7.66,209.24,209.2,7.89]
[1759124959786,7.66,209.24,209.19,115.98]
[1759124960481,7.66,209.24,209.2,7.89]
[1759124961486,7.66,209.24,209.19,7.89]
[1759124961683,7.66,209.24,209.2,115.9]
[1759124962183,7.66,209.24,209.2,115.88]
[1759124962884,7.66,209.24,209.19,7.89]
[1759124963088,7.66,209.24,209.2,115.88]
[1759124963279,7.66,209.24,209.19,7.89]
[1759124963485,7.66,209.24,209.21,7.89]
[1759124963887,7.66,209.24,209.2,115.88]
[1759124964786,7.66,209.24,209.21,7.53]
[1759124964986,7.66,209.24,209.2,115.88]
[1759124965297,7.8,209.28,209.21,7.53]
[1759124965494,7.8,209.28,209.22,83.9]
[1759124965696,7.8,209.28,209.23,7.53]
[1759124967289,4.2986,209.29,209.22,28.32]
[1759124967494,12.0986,209.29,209.23,7.53]
[1759124969894,4.2989,209.28,209.21,88.5001]
[1759124970193,12.0989,209.28,209.22,7.53]
[1759124972197,7.8,209.28,209.22,7.53]
[1759124972398,7.8,209.27,209.2,115.84]
[1759124972697,7.8,209.3,209.2,115.84]
[1759124972990,3.37873799,209.29,209.2,115.84]
[1759124973190,3.37873799,209.3,209.2,115.84]
[1759124973393,66.8611,209.31,209.19,7.53]
[1759124973394,4.2994,209.26,209.19,11.8305]
[1759124973596,4.2994,209.26,209.2,7.53]
[1759124973793,7.8,209.28,209.2,7.53]
[1759124974598,12.0988,209.28,209.2,4.3003]
[1759124974800,12.0988,209.28,209.21,7.53]
[1759124978190,4.2991,209.27,209.21,7.53]
[1759124978796,4.2991,209.27,209.21,11.83]
[1759124978991,7.8,209.28,209.22,7.53]
[1759124980103,7.8,209.28,209.22,4.2999]
[1759124980599,7.8,209.28,209.23,7.53]
[1759124981000,7.8,209.28,209.22,4.2999]
[1759124981209,12.0989,209.28,209.22,11.8299]
[1759124984511,7.8,209.3,209.24,7.53]
[1759124985003,12.0978,209.33,209.25,7.53]
[1759124986612,12.0978,209.33,209.25,4.2992]
[1759124986814,12.0978,209.33,209.26,7.53]
[1759124987605,12.0978,209.33,209.26,4.299]
[1759124987911,12.0978,209.33,209.27,7.53]
[1759124991509,7.8,209.33,209.27,7.53]
[1759124991716,7.8,209.3,209.24,4.2996]
[1759124992015,4.2982,209.31,209.24,4.2996]
[1759124992404,4.2982,209.31,209.25,7.53]
[1759124992610,7.8,209.3,209.25,7.53]
[1759124993014,7.8,209.3,209.24,4.2996]
[1759124993015,4.2982,209.31,209.24,4.2996]
[1759124993216,7.8,209.3,209.25,7.53]
[1759124993412,4.2982,209.31,209.24,4.2996]
[1759124993605,7.8,209.3,209.24,4.2996]
[1759124993812,7.52,209.3,209.25,7.28]
[1759124994010,7.52,209.3,209.24,4.2996]
[1759124994211,7.52,209.3,209.25,7.28]
[1759124994811,4.2982,209.31,209.24,4.2996]
[1759124995015,4.2982,209.31,209.25,7.28]
[1759124995217,4.2985,209.3,209.25,7.28]
[1759124995613,7.52,209.29,209.25,7.28]
[1759124996319,4.2985,209.3,209.25,7.28]
[1759124996719,7.52,209.29,209.25,7.28]
[1759124996917,4.2985,209.3,209.25,7.28]
[1759124998120,7.52,209.29,209.25,7.28]
[1759124998322,11.8185,209.3,209.24,11.5796]
[1759125001618,11.8185,209.3,209.24,4.2996]
[1759125001926,4.2985,209.3,209.25,7.28]
[1759125002525,7.52,209.29,209.25,7.28]
[1759125003328,7.52,209.29,209.24,4.2996]
[1759125003529,4.2985,209.3,209.24,4.2996]
[1759125003729,11.8185,209.3,209.24,11.5796]
[1759125005025,4.2987,209.29,209.22,12.2703589]
[1759125005231,11.8187,209.29,209.23,7.28]
[1759125005926,66.8754,209.27,209.19,7.9704589]
[1759125006227,66.8754,209.27,209.16,7.28]
[1759125006228,7.52,209.25,209.16,7.28]
[1759125006424,4.3003,209.21,209.16,7.28]
[1759125006631,7.52,209.2,209.16,7.28]
[1759125006827,4.3003,209.21,209.16,7.28]
[1759125007527,7.52,209.2,209.16,7.28]
[1759125007726,4.3003,209.21,209.16,7.28]
[1759125007923,7.52,209.2,209.16,7.28]
[1759125008322,4.3003,209.21,209.16,7.28]
[1759125008731,7.52,209.2,209.16,7.28]
[1759125008927,4.3003,209.21,209.16,7.28]
[1759125009127,7.52,209.2,209.16,7.28]
[1759125009334,4.3003,209.21,209.15,22.61676155]
[1759125009734,11.8203,209.21,209.15,29.89676155]
[1759125012334,7.7,209.17,209.15,15.2504589]
[1759125012541,4.3009,209.18,209.12,7.9704589]
[1759125012729,7.7,209.2,209.12,14.32145084]
[1759125012939,7.7,209.2,209.11,15.9504589]
[1759125013237,66.8942,209.21,209.11,15.9504589]
[1759125013639,12.0012,209.17,209.11,15.9504589]
[1759125015741,66.8969,209.2,209.11,15.9504589]
[1759125015944,74.5993,209.19,209.11,7.98]
[1759125016146,66.9024,209.18,209.11,7.98]
[1759125016334,4.3016,209.15,209.1,0.83169027]
[1759125016840,7.7,209.14,209.1,8.81169027]
[1759125017042,4.3018,209.14,209.09,14.67628723]
[1759125017345,7.7,209.13,209.09,7.98]
[1759125018340,4.3018,209.14,209.09,7.98]
[1759125018536,7.7,209.13,209.09,7.98]
[1759125018742,4.3018,209.14,209.09,7.98]
[1759125019133,7.7,209.13,209.08,7.98]
[1759125019335,7.7,209.13,209.09,7.98]
[1759125020245,7.7,209.13,209.08,14.30984674]
[1759125020443,7.7,209.13,209.08,7.98]
[1759125020949,7.7,209.13,209.07,8.80260658]
[1759125021142,7.7,209.13,209.08,7.98]
[1759125021341,7.7,209.13,209.07,10.20709833]
[1759125021542,7.7,209.13,209.08,7.98]
[1759125021743,7.7,209.13,209.09,7.98]
[1759125022049,7.7,209.13,209.07,2.23663943]
[1759125022441,7.7,209.13,209.08,7.98]
[1759125022642,4.3013,209.16,209.08,7.98]
[1759125022945,7.7,209.2,209.12,7.98]
[1759125023538,4.3008,209.19,209.12,7.98]
[1759125024344,4.301,209.18,209.12,7.98]
[1759125025148,7.49,209.16,209.1,125.31449175]
[1759125025346,7.49,209.16,209.1,9.09449175]
[1759125025644,7.49,209.16,209.1,7.69]
[1759125026549,7.49,209.16,209.1,9.09449175]
[1759125026752,7.49,209.2,209.13,7.69]
[1759125027550,11.7906,209.2,209.13,7.69]
[1759125029555,4.3008,209.19,209.13,7.69]
[1759125030950,7.49,209.2,209.14,7.69]
[1759125031150,7.49,209.2,209.14,9.09449175]
[1759125033554,11.7905,209.2,209.14,9.09449175]
[1759125036751,11.7905,209.2,209.14,125.21449175]
[1759125039654,4.3005,209.2,209.14,125.21449175]
[1759125039855,7.49,209.19,209.14,125.21449175]
[1759125040051,11.7905,209.2,209.14,117.52449175]
[1759125040257,11.7905,209.2,209.14,125.21449175]
[1759125044760,11.7905,209.2,209.14,9.09449175]
[1759125044960,7.49,209.19,209.15,116.04]
[1759125045956,7.49,209.19,209.16,7.69]
[1759125046460,7.49,209.19,209.15,116.04]
[1759125046963,7.49,209.19,209.16,7.69]
[1759125047261,7.49,209.19,209.15,116.04]
[1759125047463,7.49,209.19,209.16,7.69]
[1759125047656,7.49,209.19,209.15,116.04]
[1759125047961,7.49,209.19,209.16,7.69]
[1759125048161,7.49,209.19,209.15,116.04]
[1759125048460,7.49,209.19,209.16,7.69]
[1759125048655,7.49,209.19,209.15,116.04]
[1759125050362,7.49,209.19,209.15,124.0104589]
[1759125050863,7.49,209.19,209.16,7.69]
[1759125051064,7.49,209.19,209.15,124.0104589]
[1759125051665,7.49,209.19,209.16,7.69]
[1759125051966,7.49,209.19,209.15,124.0104589]
[1759125052168,7.49,209.24,209.16,9.37495065]
[1759125052360,7.49,209.24,209.17,7.69]
[1759125052966,4.2999,209.23,209.17,7.69]
[1759125053661,7.49,209.24,209.18,1.40449175]
[1759125053967,7.49,209.24,209.2,7.61]
[1759125055360,7.49,209.24,209.19,116.06]
[1759125055855,7.49,209.24,209.2,7.61]
[1759125056260,7.49,209.24,209.19,116.06]
[1759125057160,7.49,209.24,209.2,7.61]
[1759125057359,7.49,209.24,209.18,1.40449175]
[1759125057555,7.49,209.24,209.2,7.61]
[1759125057955,7.49,209.24,209.19,19.96]
[1759125058374,7.66,209.23,209.2,7.61]
[1759125058559,4.2997,209.24,209.2,7.61]
[1759125058761,7.66,209.23,209.2,7.61]
[1759125059166,7.66,209.23,209.19,19.96]
[1759125059365,7.66,209.23,209.2,7.61]
[1759125059671,7.66,209.23,209.18,117.40449175]
[1759125059865,7.66,209.23,209.19,7.61]
[1759125060059,7.66,209.23,209.18,117.40449175]
[1759125060558,7.66,209.23,209.19,7.61]
[1759125060764,7.66,209.23,209.18,117.38449175]
[1759125060968,7.66,209.23,209.19,7.61]
[1759125061161,7.66,209.23,209.18,117.38449175]
[1759125061564,7.66,209.23,209.19,7.61]
[1759125062064,7.66,209.23,209.18,117.38449175]
[1759125062270,7.66,209.23,209.19,7.61]
[1759125062471,7.66,209.23,209.18,1.40449175]
[1759125062663,7.66,209.23,209.2,7.61]
[1759125062860,7.66,209.23,209.19,115.26]
[1759125063571,7.66,209.23,209.2,7.61]
[1759125063870,7.66,209.23,209.19,115.26]
[1759125064165,7.66,209.23,209.2,7.61]
[1759125064763,7.66,209.23,209.19,115.26]
[1759125064965,7.66,209.23,209.2,7.61]
[1759125065667,7.66,209.23,209.19,115.26]
[1759125065864,13.36379175,209.26,209.2,7.61]
[1759125066071,11.9593,209.26,209.2,42.37]
[1759125066368,11.9593,209.26,209.2,67.78]
[1759125066570,11.9593,209.26,209.19,7.61]
[1759125066760,11.9593,209.26,209.2,87.8]
[1759125067366,4.2993,209.26,209.21,7.61]
[1759125067869,4.2993,209.26,209.2,87.8]
[1759125068069,11.9593,209.26,209.2,7.61]
[1759125073474,13.36379175,209.26,209.2,7.61]
[1759125073673,13.36379175,209.26,209.18,9.37495065]
[1759125073674,7.93,209.24,209.18,9.37495065]
[1759125073862,7.93,209.24,209.18,64.4304589]
[1759125075172,7.93,209.24,209.19,7.29]
[1759125075373,12.2295,209.25,209.19,7.29]
[1759125075575,12.2295,209.25,209.19,123.15]
[1759125076172,12.2295,209.25,209.19,7.29]
[1759125076366,12.2295,209.25,209.19,123.15]
[1759125083689,12.2295,209.25,209.19,7.29]
[1759125083986,7.76,209.24,209.18,12.2711589]
[1759125084290,7.76,209.24,209.2,7.81]
[1759125084486,7.76,209.24,209.2,115.84]
[1759125084689,7.76,209.24,209.21,7.81]
[1759125085083,7.76,209.24,209.2,115.84]
[1759125085382,4.2995,209.25,209.2,115.84]
[1759125085691,7.76,209.25,209.21,7.81]
[1759125085882,7.76,209.25,209.2,115.84]
[1759125086188,7.76,209.28,209.21,7.81]
[1759125086488,7.76,209.31,209.23,7.81]
[1759125086787,7.76,209.31,209.25,7.81]
[1759125087693,12.0582,209.31,209.25,7.81]
[1759125098790,7.76,209.31,209.25,7.81]
[1759125101102,7.76,209.31,209.25,12.1092]
[1759125101396,7.76,209.31,209.26,7.81]
[1759125101998,7.76,209.31,209.25,4.2992]
[1759125102395,7.76,209.31,209.26,7.81]
[1759125102601,7.76,209.31,209.25,4.2992]
[1759125102795,7.76,209.31,209.26,7.81]
[1759125103000,7.76,209.31,209.25,4.2992]
[1759125103204,7.76,209.31,209.26,7.81]
[1759125103506,7.76,209.31,209.25,4.2992]
[1759125104003,7.76,209.31,209.25,116.7992]
[1759125104603,7.76,209.31,209.26,7.81]
[1759125104804,7.76,209.31,209.25,4.2992]
[1759125105000,7.76,209.31,209.25,120.1192]
[1759125105398,7.76,209.34,209.26,7.81]
[1759125106107,7.76,209.34,209.27,7.81]
[1759125106706,7.76,209.34,209.27,12.1088]
[1759125107207,7.76,209.34,209.28,7.81]
[1759125108002,7.76,209.34,209.28,12.1086]
[1759125108200,7.76,209.34,209.29,7.81]
[1759125108605,12.0575,209.35,209.29,7.81]
[1759125109011,12.0575,209.35,209.29,4.2984]
[1759125109313,7.76,209.36,209.3,7.81]
[1759125111011,7.76,209.38,209.3,14.25182206]
[1759125111215,7.76,209.38,209.27,12.109]
[1759125111415,2.19210225,209.39,209.27,63.969]
[1759125111610,7.76,209.37,209.27,63.969]
[1759125111914,7.76,209.37,209.27,59.67]
[1759125112103,66.8398,209.38,209.27,7.81]
[1759125112309,7.76,209.31,209.25,4.2993]
[1759125113512,7.76,209.31,209.25,18.63048207]
[1759125113713,12.0581,209.32,209.26,7.81]
[1759125119017,7.68,209.3,209.26,7.81]
[1759125119222,7.68,209.31,209.2,7.49]